fUST/lending_fUST_20250127
["ID","MTS","AMOUNT","RATE_DAILY","PERIOD"]
[350530837,1737948640738,-154.18447844,0.00016572,2]
[350530838,1737948640764,-462.83688589,0.00016569,2]
[350530839,1737948640775,-37.16311411,0.00016569,2]
[350530840,1737948640785,-345.81552156,0.00016572,2]
[350530841,1737948640794,-500.0,0.00016572,2]
[350530842,1737948640804,-48.68136433,0.00016572,2]
[350530843,1737948640815,-451.31863567,0.00016572,2]
[350530844,1737948640824,-500.0,0.00016572,2]
[350530845,1737948640834,-500.0,0.00016572,2]
[350530846,1737948640843,-500.0,0.00016572,2]
[350530847,1737948640852,-504.86897852,0.00016572,2]
[350530848,1737948640861,-500.0,0.00016572,2]
[350530849,1737948640871,-501.6280933,0.00016572,2]
[350530850,1737948640880,-502.34385912,0.00016572,2]
[350530851,1737948640889,-503.18755176,0.00016572,2]
[350530852,1737948640898,-500.0,0.00016572,2]
[350530853,1737948640907,-588.66,0.00016572,2]
[350530854,1737948640917,-500.0,0.00016572,2]
[350530855,1737948640926,-500.0,0.00016572,2]
[350530856,1737948640935,-500.0,0.00016572,2]
[350530857,1737948640944,-500.0,0.00016572,2]
[350530858,1737948640954,-500.0,0.00016572,2]
[350530859,1737948640963,-500.0,0.00016572,2]
[350530860,1737948640972,-502.24740201,0.00016572,2]
[350530861,1737948640981,-501.38665441,0.00016572,2]
[350530862,1737948640990,-178.82496126,0.00016572,2]
[350530863,1737948640999,-500.0,0.00016572,2]
[350530864,1737948641008,-412.14330892,0.00016572,2]
[350530865,1737948641018,-502.60298052,0.00016572,2]
[350530866,1737948641027,-500.0,0.00016572,2]
[350530867,1737948641036,-500.0,0.00016572,2]
[350530868,1737948641045,-500.0,0.00016572,2]
[350530869,1737948641055,-500.0,0.00016572,2]
[350530870,1737948641064,-500.38011751,0.00016572,2]
[350530871,1737948641073,-500.0,0.00016572,2]
[350530872,1737948641082,-500.0,0.00016572,2]
[350530873,1737948641092,-500.36259585,0.00016572,2]
[350530874,1737948641101,-500.0,0.00016572,2]
[350530875,1737948641110,-500.0,0.00016572,2]
[350530876,1737948641119,-500.0,0.00016572,2]
[350530877,1737948641128,-501.3929311,0.00016572,2]
[350530878,1737948641137,-500.0,0.00016572,2]
[350530879,1737948641146,-518.2674131,0.00016572,2]
[350530880,1737948641155,-500.0,0.00016572,2]
[350530881,1737948641164,-500.0,0.00016572,2]
[350530882,1737948641174,-500.0,0.00016572,2]
[350530883,1737948641183,-300.0,0.00016572,2]
[350530884,1737948641193,-500.0,0.00016572,2]
[350530885,1737948641202,-500.0,0.00016572,2]
[350530886,1737948641212,-594.99271635,0.00016572,2]
[350530887,1737948641221,-500.0,0.00016572,2]
[350530888,1737948641230,-500.0,0.00016572,2]
[350530889,1737948641239,-500.0,0.00016572,2]
[350530890,1737948641248,-502.62095579,0.00016572,2]
[350530891,1737948641257,-500.0,0.00016572,2]
[350530892,1737948641266,-523.36402843,0.00016572,2]
[350530893,1737948641276,-500.0,0.00016572,2]
[350530894,1737948641285,-500.0,0.00016572,2]
[350530895,1737948641294,-500.0,0.00016572,2]
[350530896,1737948641303,-500.0,0.00016572,2]
[350530897,1737948641311,-500.0,0.00016572,2]
[350530898,1737948641321,-500.0,0.00016572,2]
[350530899,1737948641330,-1000.0,0.00016572,2]
[350530900,1737948641339,-500.0,0.00016572,2]
[350530901,1737948641348,-500.0,0.00016572,2]
[350530902,1737948641357,-501.68195091,0.00016572,2]
[350530903,1737948641366,-502.26034101,0.00016572,2]
[350530904,1737948641376,-503.14550046,0.00016572,2]
[350530905,1737948641385,-500.0,0.00016572,2]
[350530906,1737948641397,-500.80005941,0.00016572,2]
[350530907,1737948641407,-505.12352178,0.00016572,2]
[350530908,1737948641418,-500.0,0.00016572,2]
[350530909,1737948641427,-503.37259841,0.00016572,2]
[350530910,1737948641437,-500.0,0.00016572,2]
[350530911,1737948641448,-501.57328201,0.00016572,2]
[350530912,1737948641457,-501.07849395,0.00016572,2]
[350530913,1737948641466,-500.0,0.00016572,2]
[350530914,1737948641477,-519.37467764,0.00016572,2]
[350530915,1737948641486,-500.0,0.00016572,2]
[350530916,1737948641496,-505.0557109,0.00016572,2]
[350530917,1737948641505,-500.0,0.00016572,2]
[350530918,1737948641514,-500.0,0.00016572,2]
[350530919,1737948641524,-500.0,0.00016572,2]
[350530920,1737948641533,-503.21433719,0.00016572,2]
[350530921,1737948641542,-515.56877369,0.00016572,2]
[350530922,1737948641551,-501.20342707,0.00016572,2]
[350530923,1737948641559,-500.0,0.00016572,2]
[350530924,1737948641569,-500.0,0.00016572,2]
[350530925,1737948641577,-618.21864201,0.00016572,2]
[350530926,1737948641586,-2125.47,0.00016572,2]
[350530927,1737948641595,-509.3914945,0.00016572,2]
[350530928,1737948641605,-526.25470159,0.00016572,2]
[350530929,1737948641614,-508.07603986,0.00016572,2]
[350530930,1737948641623,-500.0,0.00016572,2]
[350530931,1737948641632,-500.0,0.00016573,2]
[350530932,1737948641641,-500.0,0.00016573,2]
[350530933,1737948641651,-500.0,0.00016573,2]
[350530934,1737948641660,-500.0,0.00016573,2]
[350530935,1737948641671,-500.0,0.00016573,2]
[350530936,1737948641680,-500.0,0.00016573,2]
[350530937,1737948641690,-500.0,0.00016573,2]
[350530938,1737948641699,-500.0,0.00016573,2]
[350530939,1737948641708,-500.0,0.00016573,2]
[350530940,1737948641718,-500.0,0.00016573,2]
[350530941,1737948641727,-2125.47,0.00016573,2]
[350530942,1737948641842,-411.51521224,0.00016574,2]
[350530943,1737948641852,-497.00634377,0.00016574,2]
[350530944,1737948641861,-501.76127273,0.00016574,2]
[350530945,1737948641871,-502.29979048,0.00016574,2]
[350530946,1737948641881,-500.0,0.00016574,2]
[350530947,1737948641890,-501.99943055,0.00016574,2]
[350530948,1737948641901,-609.25893571,0.00016574,2]
[350530949,1737948641910,-501.04609729,0.00016574,2]
[350530950,1737948641922,-500.0,0.00016574,2]
[350530951,1737948641932,-500.0,0.00016574,2]
[350530952,1737948641941,-500.0,0.00016574,2]
[350530953,1737948641950,-500.0,0.00016574,2]
[350530954,1737948641960,-500.0,0.00016574,2]
[350530955,1737948641970,-500.0,0.00016706,2]
[350530956,1737948641979,-500.0,0.00016706,2]
[350530957,1737948641989,-897.09,0.00016706,2]
[350530958,1737948641999,-500.0,0.00016706,2]
[350530959,1737948642009,-500.0,0.00016706,2]
[350530960,1737948642019,-520.60015512,0.00016706,2]
[350530961,1737948642028,-500.0,0.00016706,2]
[350530962,1737948642038,-500.0,0.00016707,2]
[350530963,1737948642047,-500.0,0.00016707,2]
[350530964,1737948642057,-1080.97,0.00016707,2]
[350530965,1737948642066,-500.0,0.00016707,2]
[350530966,1737948642075,-500.0,0.00016707,2]
[350530967,1737948642085,-2381.41,0.00016707,2]
[350530968,1737948642095,-500.0,0.00016707,2]
[350530969,1737948642104,-500.0,0.00016707,2]
[350530970,1737948642114,-500.0,0.00016707,2]
[350530971,1737948642123,-824.06,0.00016707,2]
[350530972,1737948642133,-1084.01,0.00016707,2]
[350530973,1737948642143,-500.0,0.00016707,2]
[350530974,1737948642153,-418.34128361,0.00016707,2]
[350530975,1737948642164,-500.0,0.00016707,2]
[350530976,1737948642176,-500.0,0.00016707,2]
[350530977,1737948642185,-500.0,0.00016707,2]
[350530978,1737948642195,-500.0,0.00016707,2]
[350530979,1737948642204,-500.0,0.00016707,2]
[350530980,1737948642213,-500.0,0.00016707,2]
[350530981,1737948642223,-500.0,0.00016707,2]
[350530982,1737948642232,-571.86,0.00016707,2]
[350530983,1737948642242,-500.0,0.00016707,2]
[350530984,1737948642252,-500.0,0.00016707,2]
[350530985,1737948642261,-500.0,0.00016707,2]
[350530986,1737948642271,-500.0,0.00016707,2]
[350530987,1737948642281,-500.0,0.00016707,2]
[350530988,1737948642290,-500.0,0.00016707,2]
[350530989,1737948642299,-500.0,0.00016707,2]
[350530990,1737948642308,-811.84,0.00016707,2]
[350530991,1737948642317,-500.0,0.00016707,2]
[350530992,1737948642327,-2125.47,0.00016707,2]
[350530993,1737948642336,-2125.47,0.00016707,2]
[350530994,1737948642345,-500.0,0.00016707,2]
[350530995,1737948642355,-500.0,0.00016707,2]
[350530996,1737948642364,-500.0,0.00016708,2]
[350530997,1737948642373,-500.0,0.00016708,2]
[350530998,1737948642383,-500.0,0.00016708,2]
[350530999,1737948642396,-500.0,0.00016708,2]
[350531000,1737948642405,-500.0,0.00016708,2]
[350531001,1737948642414,-500.0,0.00016708,2]
[350531002,1737948642427,-500.0,0.00016708,2]
[350531003,1737948642436,-500.0,0.00016708,2]
[350531004,1737948642445,-500.0,0.00016708,2]
[350531005,1737948642454,-500.0,0.00016708,2]
[350531006,1737948642464,-500.0,0.00016708,2]
[350531007,1737948642474,-500.0,0.00016708,2]
[350531008,1737948642483,-500.0,0.00016708,2]
[350531009,1737948642493,-500.0,0.00016708,2]
[350531010,1737948642502,-500.0,0.00016708,2]
[350531011,1737948642511,-500.0,0.00016708,2]
[350531012,1737948642521,-500.0,0.00016708,2]
[350531013,1737948642530,-500.0,0.00016708,2]
[350531014,1737948642539,-500.0,0.00016708,2]
[350531015,1737948642548,-500.0,0.00016708,2]
[350531016,1737948642557,-500.0,0.00016708,2]
[350531017,1737948642567,-500.0,0.00016708,2]
[350531018,1737948642576,-500.0,0.00016708,2]
[350531019,1737948642585,-532.50215622,0.00016708,2]
[350531020,1737948642594,-500.0,0.00016708,2]
[350531021,1737948642604,-500.0,0.00016708,2]
[350531022,1737948642613,-500.0,0.00016708,2]
[350531023,1737948642622,-500.0,0.00016708,2]
[350531024,1737948642632,-500.0,0.00016708,2]
[350531025,1737948642641,-500.0,0.00016708,2]
[350531026,1737948642650,-387.85320052,0.00016708,2]
[350531027,1737948642660,-500.0,0.00016708,2]
[350531028,1737948642671,-500.0,0.00016708,2]
[350531029,1737948642682,-500.0,0.00016708,2]
[350531030,1737948642691,-500.0,0.00016708,2]
[350531031,1737948642700,-500.0,0.00016708,2]
[350531032,1737948642710,-500.0,0.00016708,2]
[350531033,1737948642719,-500.0,0.00016708,2]
[350531034,1737948642729,-500.0,0.00016708,2]
[350531035,1737948642738,-500.0,0.00016708,2]
[350531036,1737948642747,-500.0,0.00016708,2]
[350531037,1737948642756,-500.0,0.00016708,2]
[350531038,1737948642765,-500.0,0.00016708,2]
[350531039,1737948642775,-500.0,0.00016708,2]
[350531040,1737948642784,-500.0,0.00016708,2]
[350531041,1737948642793,-500.0,0.00016708,2]
[350531042,1737948642803,-500.0,0.00016708,2]
[350531043,1737948642812,-500.0,0.00016708,2]
[350531044,1737948642821,-500.0,0.00016708,2]
[350531045,1737948642831,-500.0,0.00016708,2]
[350531046,1737948642840,-500.0,0.00016708,2]
[350531047,1737948642849,-500.0,0.00016708,2]
[350531048,1737948642859,-500.0,0.00016708,2]
[350531049,1737948642868,-500.0,0.00016708,2]
[350531050,1737948642878,-500.0,0.00016708,2]
[350531051,1737948642888,-3535.05,0.00016708,2]
[350531052,1737948642897,-500.0,0.00016708,2]
[350531053,1737948642907,-500.0,0.00016708,2]
[350531054,1737948642918,-503.72983366,0.00016708,2]
[350531055,1737948642927,-500.0,0.00016708,2]
[350531056,1737948642936,-500.0,0.00016708,2]
[350531057,1737948642946,-500.0,0.00016708,2]
[350531058,1737948642955,-621.36,0.00016708,2]
[350531059,1737948642964,-2603.9,0.00016708,2]
[350531060,1737948642973,-512.29833037,0.00016708,2]
[350531061,1737948642983,-161.11,0.00016708,2]
[350531062,1737948642992,-500.0,0.00016708,2]
[350531063,1737948643002,-207.29,0.00016708,2]
[350531064,1737948643012,-500.0,0.00016708,2]
[350531065,1737948643021,-13478.26,0.00016708,2]
[350531066,1737948643031,-850.65,0.00016708,2]
[350531067,1737948643041,-500.0,0.00016708,2]
[350531069,1737948643051,-500.0,0.00016708,2]
[350531070,1737948643060,-542.45,0.00016708,2]
[350531071,1737948643070,-500.0,0.00016708,2]
[350531072,1737948643079,-500.0,0.00016708,2]
[350531073,1737948643089,-232.84990616,0.00016708,2]
[350531074,1737948643100,-500.0,0.00016708,2]
[350531075,1737948643109,-500.0,0.00016708,2]
[350531076,1737948643119,-694.5,0.00016708,2]
[350531077,1737948643128,-5174.34,0.00016708,2]
[350531078,1737948643138,-2125.47,0.00016708,2]
[350531080,1737948643147,-2125.47,0.00016708,2]
[350531081,1737948643157,-2125.47,0.00016708,2]
[350531082,1737948643170,-2125.47,0.00016708,2]
[350531083,1737948643180,-2125.47,0.00016708,2]
[350531084,1737948643190,-2125.47,0.00016708,2]
[350531085,1737948643200,-2125.47,0.00016708,2]
[350531087,1737948643211,-2125.47,0.00016708,2]
[350531089,1737948643223,-2125.51882981,0.00016708,2]
[350531090,1737948643233,-500.0,0.00016708,2]
[350531091,1737948643244,-507.646941,0.00016708,2]
[350531092,1737948643255,-823.08,0.00016708,2]
[350531093,1737948643265,-500.0,0.00016708,2]
[350531095,1737948643275,-500.0,0.00016709,2]
[350531097,1737948643284,-500.0,0.00016709,2]
[350531099,1737948643294,-500.0,0.00016709,2]
[350531101,1737948643304,-500.0,0.00016709,2]
[350531103,1737948643313,-500.0,0.00016709,2]
[350531105,1737948643324,-500.0,0.00016709,2]
[350531107,1737948643334,-500.0,0.00016709,2]
[350531109,1737948643344,-200.0,0.00016709,2]
[350531111,1737948643354,-500.0,0.00016709,2]
[350531113,1737948643363,-500.0,0.00016709,2]
[350531115,1737948643374,-500.0,0.00016709,2]
[350531117,1737948643384,-500.0,0.00016709,2]
[350531119,1737948643395,-500.0,0.00016709,2]
[350531121,1737948643406,-500.0,0.00016709,2]
[350531123,1737948643416,-500.0,0.00016709,2]
[350531125,1737948643429,-500.0,0.00016709,2]
[350531127,1737948643440,-500.0,0.00016709,2]
[350531128,1737948643450,-500.0,0.00016709,2]
[350531129,1737948643460,-500.0,0.00016709,2]
[350531130,1737948643469,-501.79621417,0.00016709,2]
[350531131,1737948643480,-500.0,0.00016709,2]
[350531132,1737948643492,-500.0,0.00016709,2]
[350531133,1737948643502,-500.0,0.00016709,2]
[350531134,1737948643512,-500.0,0.00016709,2]
[350531135,1737948643521,-500.0,0.00016709,2]
[350531136,1737948643530,-486.96,0.00016709,2]
[350531137,1737948643539,-500.0,0.00016709,2]
[350531138,1737948643549,-500.0,0.00016709,2]
[350531139,1737948643558,-500.0,0.00016709,2]
[350531140,1737948643567,-500.0,0.00016709,2]
[350531141,1737948643576,-500.0,0.00016709,2]
[350531142,1737948643585,-500.0,0.00016709,2]
[350531143,1737948643595,-331.10318901,0.00016709,2]
[350531144,1737948643605,-500.0,0.00016709,2]
[350531145,1737948643614,-500.0,0.00016709,2]
[350531146,1737948643624,-500.0,0.00016709,2]
[350531148,1737948643634,-500.0,0.00016709,2]
[350531150,1737948643644,-500.0,0.00016709,2]
[350531152,1737948643656,-500.0,0.00016709,2]
[350531153,1737948643671,-500.0,0.00016709,2]
[350531154,1737948643682,-500.0,0.00016709,2]
[350531155,1737948643693,-500.0,0.00016709,2]
[350531157,1737948643703,-500.0,0.00016709,2]
[350531159,1737948643713,-500.0,0.00016709,2]
[350531161,1737948643723,-500.0,0.00016709,2]
[350531163,1737948643734,-500.0,0.00016709,2]
[350531165,1737948643744,-500.0,0.00016709,2]
[350531167,1737948643753,-500.0,0.00016709,2]
[350531169,1737948643762,-510.27951506,0.00016709,2]
[350531171,1737948643772,-500.0,0.00016709,2]
[350531174,1737948643783,-500.0,0.00016709,2]
[350531176,1737948643792,-500.0,0.00016709,2]
[350531178,1737948643803,-500.0,0.00016709,2]
[350531182,1737948643812,-500.0,0.00016709,2]
[350531184,1737948643821,-503.79225995,0.00016709,2]
[350531186,1737948643831,-500.0,0.00016709,2]
[350531188,1737948643840,-500.0,0.00016709,2]
[350531190,1737948643850,-476.52789055,0.00016709,2]
[350531193,1737948643863,-401.42517882,0.00016709,2]
[350531195,1737948643872,-500.0,0.00016709,2]
[350531197,1737948643882,-500.0,0.00016709,2]
[350531199,1737948643891,-500.0,0.00016709,2]
[350531200,1737948643901,-507.52712691,0.00016709,2]
[350531202,1737948643910,-506.64041338,0.00016709,2]
[350531204,1737948643922,-500.0,0.00016709,2]
[350531206,1737948643931,-500.0,0.00016709,2]
[350531208,1737948643940,-500.0,0.00016709,2]
[350531210,1737948643950,-500.0,0.00016709,2]
[350531212,1737948643959,-500.0,0.00016709,2]
[350531214,1737948643968,-500.0,0.00016709,2]
[350531216,1737948643977,-636.88779397,0.00016709,2]
[350531218,1737948643987,-500.0,0.00016709,2]
[350531220,1737948643996,-500.0,0.00016709,2]
[350531221,1737948644006,-179.56753339,0.00016709,2]
[350531224,1737948644022,-320.43246661,0.00016709,2]
[350531225,1737948644032,-290.18753339,0.00016709,2]
[350531227,1737948644043,-209.81246661,0.00016709,2]
[350531229,1737948644053,-413.05038939,0.00016709,2]
[350531231,1737948644064,-86.94961061,0.00016709,2]
[350531233,1737948644074,-500.0,0.00016709,2]
[350531235,1737948644083,-202.98647363,0.00016709,2]
[350531240,1737948644117,-500.0,0.00016706,2]
[350531242,1737948644126,-297.01352637,0.00016709,2]
[350531244,1737948644136,-500.0,0.00016709,2]
[350531246,1737948644145,-500.0,0.00016709,2]
[350531248,1737948644154,-500.0,0.00016709,2]
[350531250,1737948644164,-500.0,0.00016709,2]
[350531252,1737948644176,-500.0,0.00016709,2]
[350531254,1737948644185,-345.07765355,0.00016709,2]
[350531257,1737948644195,-500.0,0.00016709,2]
[350531259,1737948644204,-500.0,0.00016709,2]
[350531261,1737948644214,-500.0,0.00016709,2]
[350531263,1737948644224,-500.0,0.00016709,2]
[350531265,1737948644234,-500.0,0.00016709,2]
[350531267,1737948644243,-502.04237346,0.00016709,2]
[350531269,1737948644252,-502.23077458,0.00016709,2]
[350531270,1737948644262,-500.0,0.00016709,2]
[350531272,1737948644271,-500.0,0.00016709,2]
[350531274,1737948644280,-500.0,0.00016709,2]
[350531276,1737948644290,-261.99666655,0.00016709,2]
[350531278,1737948644299,-500.0,0.00016709,2]
[350531280,1737948644308,-501.20564487,0.00016709,2]
[350531282,1737948644318,-562.95068644,0.00016709,2]
[350531284,1737948644327,-446.18300459,0.00016709,2]
[350531286,1737948644338,-500.0,0.00016709,2]
[350531288,1737948644347,-276.75475286,0.00016709,2]
[350531290,1737948644356,-504.17156201,0.00016709,2]
[350531292,1737948644365,-500.0,0.00016709,2]
[350531294,1737948644374,-503.72287359,0.00016709,2]
[350531296,1737948644384,-500.0,0.00016709,2]
[350531298,1737948644397,-500.0,0.00016709,2]
[350531300,1737948644406,-500.0,0.00016709,2]
[350531301,1737948644415,-500.0,0.00016709,2]
[350531302,1737948644426,-500.0,0.00016709,2]
[350531304,1737948644437,-278.91971324,0.00016709,2]
[350531306,1737948644446,-500.0,0.00016709,2]
[350531308,1737948644455,-500.0,0.00016709,2]
[350531310,1737948644465,-575.9678597,0.0001671,2]
[350531312,1737948644474,-503.06625058,0.0001671,2]
[350531313,1737948644484,-420.4562633,0.0001671,2]
[350531314,1737948644492,-500.0,0.0001671,2]
[350531315,1737948644502,-500.0,0.0001671,2]
[350531316,1737948644512,-500.0,0.0001671,2]
[350531317,1737948644521,-500.0,0.0001671,2]
[350531318,1737948644530,-500.0,0.0001671,2]
[350531319,1737948644540,-500.0,0.0001671,2]
[350531320,1737948644549,-500.0,0.0001671,2]
[350531321,1737948644558,-500.0,0.0001671,2]
[350531322,1737948644567,-500.0,0.0001671,2]
[350531323,1737948644577,-500.0,0.00016711,2]
[350531324,1737948644586,-500.0,0.00016711,2]
[350531325,1737948644595,-563.33282582,0.00016711,2]
[350531326,1737948644705,-500.0,0.00016711,2]
[350531327,1737948644715,-500.0,0.00016711,2]
[350531328,1737948644724,-500.0,0.00016711,2]
[350531329,1737948644733,-581.81035225,0.00016773,2]
[350531330,1737948644742,-500.96871249,0.00016773,2]
[350531331,1737948644751,-502.55068667,0.00016773,2]
[350531332,1737948644761,-500.0,0.00016843,2]
[350531333,1737948644770,-500.0,0.00016843,2]
[350531334,1737948644780,-897.09,0.00016843,2]
[350531335,1737948644789,-500.0,0.00016843,2]
[350531336,1737948644798,-500.0,0.00016843,2]
[350531337,1737948644808,-1080.97,0.00016844,2]
[350531338,1737948644817,-500.0,0.00016844,2]
[350531339,1737948644827,-500.0,0.00016844,2]
[350531340,1737948644836,-2381.41,0.00016844,2]
[350531341,1737948644846,-500.0,0.00016844,2]
[350531342,1737948644855,-500.0,0.00016844,2]
[350531343,1737948644864,-824.06,0.00016844,2]
[350531344,1737948644874,-1084.01,0.00016844,2]
[350531345,1737948644883,-500.0,0.00016844,2]
[350531346,1737948644892,-449.06,0.00016844,2]
[350531347,1737948644902,-500.0,0.00016844,2]
[350531348,1737948644911,-199.83,0.00016844,2]
[350531349,1737948644922,-537.74,0.00016844,2]
[350531350,1737948644931,-571.86,0.00016844,2]
[350531351,1737948644940,-500.0,0.00016844,2]
[350531352,1737948644950,-500.0,0.00016844,2]
[350531353,1737948644959,-597.97,0.00016844,2]
[350531354,1737948644968,-500.0,0.00016844,2]
[350531355,1737948644979,-500.0,0.00016844,2]
[350531356,1737948644988,-811.84,0.00016844,2]
[350531357,1737948644997,-500.0,0.00016844,2]
[350531358,1737948645007,-500.0,0.00016844,2]
[350531359,1737948645016,-500.0,0.00016844,2]
[350531360,1737948645025,-500.0,0.00016845,2]
[350531361,1737948645034,-500.0,0.00016845,2]
[350531362,1737948645043,-500.0,0.00016845,2]
[350531363,1737948645053,-500.0,0.00016845,2]
[350531364,1737948645062,-500.0,0.00016845,2]
[350531365,1737948645071,-500.0,0.00016845,2]
[350531366,1737948645080,-500.0,0.00016845,2]
[350531367,1737948645089,-500.0,0.00016845,2]
[350531368,1737948645099,-500.0,0.00016845,2]
[350531369,1737948645108,-500.0,0.00016845,2]
[350531370,1737948645117,-500.0,0.00016845,2]
[350531371,1737948645126,-500.0,0.00016845,2]
[350531372,1737948645135,-500.0,0.00016845,2]
[350531373,1737948645145,-500.0,0.00016845,2]
[350531374,1737948645154,-500.0,0.00016845,2]
[350531375,1737948645164,-500.0,0.00016845,2]
[350531376,1737948645175,-500.0,0.00016845,2]
[350531377,1737948645185,-500.0,0.00016845,2]
[350531378,1737948645194,-500.0,0.00016845,2]
[350531379,1737948645203,-500.0,0.00016845,2]
[350531380,1737948645212,-500.0,0.00016845,2]
[350531381,1737948645221,-500.0,0.00016845,2]
[350531382,1737948645231,-500.0,0.00016845,2]
[350531383,1737948645240,-500.0,0.00016845,2]
[350531384,1737948645249,-558.04,0.00016845,2]
[350531385,1737948645258,-500.0,0.00016845,2]
[350531386,1737948645268,-500.0,0.00016845,2]
[350531387,1737948645277,-576.36,0.00016845,2]
[350531388,1737948645286,-500.0,0.00016845,2]
[350531389,1737948645295,-500.0,0.00016845,2]
[350531390,1737948645305,-500.0,0.00016845,2]
[350531391,1737948645314,-500.0,0.00016845,2]
[350531392,1737948645323,-500.0,0.00016845,2]
[350531393,1737948645332,-500.0,0.00016845,2]
[350531394,1737948645342,-500.0,0.00016845,2]
[350531395,1737948645351,-502.09,0.00016845,2]
[350531396,1737948645360,-500.0,0.00016845,2]
[350531397,1737948645369,-500.0,0.00016845,2]
[350531398,1737948645378,-500.0,0.00016845,2]
[350531399,1737948645388,-500.0,0.00016845,2]
[350531400,1737948645399,-500.0,0.00016845,2]
[350531401,1737948645408,-500.0,0.00016845,2]
[350531402,1737948645418,-500.0,0.00016845,2]
[350531403,1737948645426,-500.0,0.00016845,2]
[350531404,1737948645435,-500.0,0.00016845,2]
[350531405,1737948645446,-3535.05,0.00016845,2]
[350531406,1737948645455,-500.0,0.00016845,2]
[350531407,1737948645464,-500.0,0.00016845,2]
[350531408,1737948645474,-500.0,0.00016845,2]
[350531409,1737948645483,-291.62,0.00016845,2]
[350531410,1737948645492,-500.0,0.00016845,2]
[350531411,1737948645501,-621.36,0.00016845,2]
[350531412,1737948645512,-2603.9,0.00016845,2]
[350531413,1737948645522,-500.0,0.00016845,2]
[350531414,1737948645532,-500.0,0.00016845,2]
[350531415,1737948645541,-13478.26,0.00016845,2]
[350531416,1737948645550,-850.65,0.00016845,2]
[350531417,1737948645559,-542.45,0.00016845,2]
[350531418,1737948645568,-500.0,0.00016845,2]
[350531419,1737948645577,-694.5,0.00016845,2]
[350531420,1737948645586,-1453.47082777,0.00016845,2]
[350531421,1737948645602,-3720.86917223,0.00016845,2]
[350531422,1737948645611,-500.0,0.00016845,2]
[350531423,1737948645620,-823.08,0.00016845,2]
[350531424,1737948645630,-500.0,0.00016845,2]
[350531425,1737948645639,-500.0,0.00016846,2]
[350531426,1737948645648,-500.0,0.00016846,2]
[350531427,1737948645657,-500.0,0.00016846,2]
[350531428,1737948645666,-500.0,0.00016846,2]
[350531429,1737948645676,-223.21317969,0.00016846,2]
[350531430,1737948645686,-357.02531199,0.00016846,2]
[350531431,1737948645695,-500.0,0.00016846,2]
[350531432,1737948645704,-500.0,0.00016846,2]
[350531433,1737948645713,-500.0,0.00016846,2]
[350531434,1737948645723,-500.0,0.00016846,2]
[350531435,1737948645732,-214.47612867,0.00016846,2]
[350531436,1737948645741,-500.0,0.00016846,2]
[350531437,1737948645750,-500.0,0.00016846,2]
[350531438,1737948645759,-500.0,0.00016846,2]
[350531439,1737948645769,-450.42129188,0.00016846,2]
[350531440,1737948645778,-500.0,0.00016846,2]